bitfinex/quotes_ETHUSD_20250430
["timestamp","ask_amount","ask_price","bid_price","bid_amount"]
[1745975334466,0.31845903,1806.2,1806.1,0.7664]
[1745975334649,0.30995187,1806.5,1806.1,0.7664]
[1745975334858,0.31845903,1806.2,1806.1,0.7664]
[1745975335055,0.30995187,1806.5,1806.1,0.7664]
[1745975335282,0.31845903,1806.2,1806.1,0.7664]
[1745975335866,3.0,1806.6,1806.1,0.7664]
[1745975336065,0.31846343,1806.2,1806.1,0.7664]
[1745975336248,3.0,1806.6,1806.1,0.7664]
[1745975336444,0.32048626,1806.2,1806.1,0.7664]
[1745975336773,3.0,1806.6,1806.1,0.7664]
[1745975337175,0.3205508,1806.5,1806.1,0.7664]
[1745975341859,0.3205508,1806.5,1806.1,1.76810398]
[1745975342078,1.0748508,1806.5,1806.1,0.7664]
[1745975343036,1.0748508,1806.5,1805.7,9.2487268]
[1745975343241,3.7543,1806.4,1805.8,0.8333]
[1745975343575,3.7543,1806.2,1805.7,3.71090115]
[1745975343774,0.32032537,1806.1,1805.7,3.71090115]
[1745975343940,3.7543,1806.2,1805.7,3.71090115]
[1745975344145,0.32029462,1806.1,1805.7,3.71090115]
[1745975344445,0.32029462,1806.1,1805.6,3.71090115]
[1745975345381,3.7543,1806.2,1805.6,3.71090115]
[1745975345556,0.32028584,1806.1,1805.6,3.71090115]
[1745975345878,3.7543,1806.2,1805.6,3.71090115]
[1745975346685,3.7543,1806.2,1805.5,0.8333]
[1745975346686,0.31014953,1806.1,1805.5,0.8333]
[1745975346862,0.71659448,1806.1,1805.5,0.8333]
[1745975347477,0.71659448,1806.1,1805.5,6.37190383]
[1745975347682,0.31014953,1806.0,1805.5,6.37190383]
[1745975348086,0.31014953,1806.0,1805.5,0.8333]
[1745975349079,1.08874953,1806.0,1805.5,0.8333]
[1745975349479,0.7786,1805.8,1805.3,0.7962]
[1745975349862,0.31867679,1805.7,1805.3,0.7962]
[1745975357366,0.816,1805.6,1805.1,0.8523]
[1745975357571,0.31863079,1805.5,1805.1,0.8523]
[1745975358371,0.816,1805.4,1805.1,0.05]
[1745975358695,0.31567477,1805.3,1805.1,0.05]
[1745975359070,0.816,1805.4,1805.1,0.05]
[1745975359269,0.31564297,1805.2,1805.1,0.05]
[1745975359470,0.816,1805.4,1805.1,0.05]
[1745975359876,0.31565718,1805.3,1805.1,0.05]
[1745975360278,0.816,1805.4,1805.1,0.05]
[1745975360488,0.31563857,1805.2,1805.1,0.05]
[1745975360692,0.816,1805.4,1805.1,0.05]
[1745975361062,0.31567037,1805.3,1805.1,0.05]
[1745975361395,0.816,1805.4,1805.1,0.05]
[1745975361557,0.31567037,1805.3,1805.1,0.05]
[1745975361760,0.816,1805.4,1805.1,0.05]
[1745975361962,0.31567037,1805.3,1805.1,0.05]
[1745975362163,0.816,1805.4,1805.1,0.05]
[1745975362458,0.31567037,1805.3,1805.1,0.05]
[1745975362663,0.31567037,1805.3,1805.1,0.10539186]
[1745975362897,0.7552,1805.5,1805.1,0.10539186]
[1745975363070,0.31565176,1805.2,1805.1,5.64525114]
[1745975363259,0.7552,1805.5,1805.1,0.10539204]
[1745975363782,0.31569777,1805.4,1805.1,0.05]
[1745975364796,0.7552,1805.3,1805.1,0.05]
[1745975365097,0.31505384,1805.2,1805.1,0.05]
[1745975367999,6.46505384,1805.2,1805.1,0.05]
[1745975374005,0.31505384,1805.2,1805.1,0.05]
[1745975374181,5.4385,1805.5,1805.1,0.05]
[1745975374382,0.31282628,1805.4,1805.1,0.05]
[1745975377965,0.31282628,1805.4,1805.1,0.10539236]
[1745975378169,0.31282628,1805.4,1805.1,0.05]
[1745975381295,0.88795891,1805.4,1805.1,0.05]
[1745975381499,1.08321776,1805.3,1805.1,0.05]
[1745975381907,0.3127671,1805.2,1805.1,0.05]
[1745975384808,0.62416018,1805.2,1805.1,0.05]
[1745975385706,6.77416018,1805.2,1805.1,0.05]
[1745975386917,7.5287762,1805.2,1805.1,0.05]
[1745975387219,8.3244762,1805.2,1805.1,0.05]
[1745975388191,11.3244762,1805.2,1805.1,0.05]
[1745975394715,17.1624762,1805.2,1805.1,0.05]
[1745975394920,11.3244762,1805.2,1805.1,0.05]
[1745975399017,11.8744762,1805.2,1805.1,0.05]
[1745975400923,17.7124762,1805.2,1805.1,0.05]
[1745975406127,0.7786,1804.8,1804.4,0.7768]
[1745975406429,3.0,1804.6,1804.4,0.7768]
[1745975406643,0.30659192,1804.5,1804.4,0.7768]
[1745975411560,6.40659192,1804.5,1804.2,0.7722]
[1745975411719,6.71667372,1804.5,1804.2,0.7722]
[1745975411924,7.76746109,1804.5,1804.2,0.7722]
[1745975412437,0.3100818,1804.4,1804.2,0.7722]
[1745975412650,0.30650616,1804.3,1804.2,0.7722]
[1745975413169,0.3100818,1804.4,1804.2,0.7722]
[1745975413340,0.30651056,1804.3,1804.2,1.56656992]
[1745975413525,6.1,1804.5,1804.2,2.35716992]
[1745975413727,6.1,1804.5,1804.3,0.7906]
[1745975413922,0.3065644,1804.4,1804.3,0.7906]
[1745975418567,0.3065644,1804.4,1804.2,0.7885]
[1745975420079,4.1397644,1804.4,1804.1,0.460037]
[1745975420237,0.41397644,1804.3,1804.1,0.460037]
[1745975420437,0.61523713,1804.2,1804.1,0.460037]
[1745975421237,0.30463651,1804.2,1804.1,0.460037]
[1745975421450,3.0,1804.4,1804.1,0.460037]
[1745975421652,0.30467614,1804.2,1804.1,0.460037]
[1745975421859,3.0,1804.4,1804.1,0.460037]
[1745975422059,0.30421561,1804.2,1804.1,0.460037]
[1745975422269,0.31077327,1804.3,1804.2,0.7551]
[1745975422672,6.1,1804.5,1804.2,0.7551]
[1745975423752,0.31084258,1804.4,1804.2,0.7551]
[1745975428187,6.1,1804.5,1804.2,0.7551]
[1745975429693,0.31132709,1804.4,1804.2,0.7551]
[1745975429880,4.631,1804.3,1804.1,1.218237]
[1745975430590,0.31132709,1804.2,1804.1,1.218237]
[1745975430779,0.61504934,1804.2,1804.1,1.218237]
[1745975431792,0.90103784,1804.2,1804.1,1.218237]
[1745975432390,0.90103784,1804.2,1804.1,0.460037]
[1745975435099,1.45424162,1804.2,1804.1,0.460037]
[1745975435393,7.55424162,1804.2,1804.1,0.460037]
[1745975436096,7.00103784,1804.2,1804.1,0.460037]
[1745975437295,12.38880776,1804.2,1804.1,0.460037]
[1745975437797,10.82223784,1804.2,1804.1,0.460037]
[1745975444835,7.00103784,1804.2,1804.1,0.460037]
[1745975445028,7.00103784,1804.2,1804.1,1.210037]
[1745975445206,7.00103784,1804.2,1804.1,2.77660692]
[1745975445411,0.90103784,1804.2,1804.1,8.5971976]
[1745975445627,0.90103784,1804.2,1804.1,9.023817]
[1745975446222,0.58971075,1804.2,1804.1,9.023817]
[1745975446417,6.1,1804.5,1804.1,8.273817]
[1745975446616,0.48732725,1804.4,1804.2,0.8256]
[1745975447533,0.48732725,1804.4,1804.3,2.37378903]
[1745975447710,0.48732725,1804.4,1804.3,0.7518]
[1745975447956,4.63,1804.6,1804.3,0.7518]
[1745975448533,0.44875776,1804.5,1804.3,0.7518]
[1745975453511,1.27685776,1804.5,1804.1,1.215837]
[1745975453711,6.1,1804.4,1804.1,0.460037]
[1745975454242,0.75928883,1804.3,1804.1,0.460037]
[1745975454822,0.44873651,1804.3,1804.1,0.460037]
[1745975455023,6.1,1804.4,1804.1,0.460037]
[1745975455224,1.05874062,1804.3,1804.1,0.460037]
[1745975455744,0.44874062,1804.3,1804.1,0.460037]
[1745975456244,0.44872795,1804.2,1804.1,0.460037]
[1745975456445,6.1,1804.4,1804.1,0.460037]
[1745975456619,0.44873651,1804.3,1804.1,0.460037]
[1745975456824,6.1,1804.4,1804.1,0.460037]
[1745975457050,0.75940104,1804.3,1804.1,0.460037]
[1745975457248,0.75940104,1804.3,1804.2,0.8245]
[1745975457820,0.75940104,1804.3,1804.2,6.42254538]
[1745975458151,0.44873651,1804.3,1804.2,6.36712276]
[1745975458347,0.44873651,1804.3,1804.2,0.8245]
[1745975458537,4.63,1804.6,1804.2,0.8245]
[1745975458713,0.4120323,1804.3,1804.2,0.8245]
[1745975458917,4.63,1804.6,1804.2,0.8245]
[1745975459141,0.4120323,1804.3,1804.2,0.8245]
[1745975459649,4.63,1804.6,1804.2,0.8245]
[1745975459847,0.41204667,1804.5,1804.2,0.8245]
[1745975460026,0.41204667,1804.5,1804.2,1.10961069]
[1745975464025,0.41204667,1804.5,1804.2,0.8245]
[1745975464563,6.1,1804.4,1804.1,0.460037]
[1745975464734,4.13459013,1804.3,1804.1,0.460037]
[1745975464938,4.627,1804.2,1804.1,0.460037]
[1745975465327,5.34924644,1804.2,1804.1,0.460037]
[1745975465558,12.36656108,1804.2,1804.1,0.460037]
[1745975468769,13.19956108,1804.2,1804.1,0.460037]
[1745975469260,14.766131,1804.2,1804.1,0.460037]
[1745975470261,17.766131,1804.2,1804.1,0.460037]
[1745975470781,18.316131,1804.2,1804.1,0.460037]
[1745975471067,24.159131,1804.2,1804.1,0.460037]
[1745975473432,0.7903,1803.5,1803.2,3.71090115]
[1745975473634,10.67393767,1803.4,1803.3,0.8131]
[1745975475774,10.67393767,1803.4,1803.2,3.71090115]
[1745975475969,10.67393767,1803.4,1803.1,0.05]
[1745975477279,10.67393767,1803.4,1803.2,0.7537]
[1745975478563,5.03397467,1803.4,1803.3,1.56656992]
[1745975478760,0.40597467,1803.4,1803.3,2.32026992]
[1745975479074,4.628,1803.7,1803.3,7.11195892]
[1745975479279,0.40597946,1803.6,1803.4,0.7537]
[1745975480265,0.40597946,1803.6,1803.2,0.817]
[1745975481172,0.40597946,1803.6,1803.2,7.11224864]
[1745975481376,0.40597946,1803.6,1803.3,0.817]
[1745975485970,0.40597946,1803.6,1803.1,0.8633]
[1745975486182,3.40597946,1803.6,1803.1,0.8633]
[1745975488288,5.639963,1803.5,1803.1,0.8633]
[1745975488475,0.40144205,1803.4,1803.1,0.8633]
[1745975489959,1.08574256,1803.4,1803.1,0.8633]
[1745975490156,1.08574256,1803.4,1803.1,0.05]
[1745975493393,5.03044205,1803.4,1803.1,0.05]
[1745975495996,0.31101003,1803.3,1803.1,0.05]
[1745975496398,0.39963247,1803.2,1803.1,0.05]
[1745975497065,4.629,1803.4,1803.1,0.05]
[1745975497256,0.39963966,1803.3,1803.1,0.05]
[1745975498266,0.31130301,1803.2,1803.1,0.05]
[1745975498464,0.71093548,1803.2,1803.1,0.05]
[1745975500672,1.47253548,1803.2,1803.1,0.05]
[1745975502794,7.11249848,1803.2,1803.1,0.05]
[1745975503465,10.11249848,1803.2,1803.1,0.05]
[1745975503774,11.12374833,1803.2,1803.1,0.05]
[1745975504886,9.35089848,1803.2,1803.1,0.05]
[1745975506095,10.16919848,1803.2,1803.1,0.05]
[1745975506290,11.7357684,1803.2,1803.1,0.05]
[1745975507894,17.99623568,1803.2,1803.1,0.05]
[1745975509369,12.15323568,1803.2,1803.1,0.05]
[1745975509565,13.36855925,1803.2,1803.1,0.05]
[1745975509971,0.8164,1803.0,1802.3,1.183937]
[1745975510166,0.8164,1802.7,1802.3,1.183937]
[1745975510471,0.7046672,1802.6,1802.3,1.183937]
[1745975510673,6.2946302,1802.6,1802.3,1.183937]
[1745975510872,4.629,1802.5,1802.3,0.410037]
[1745975511064,0.38954454,1802.4,1802.3,0.410037]
[1745975516907,0.38954454,1802.4,1802.3,8.3880542]
[1745975517095,0.38954454,1802.4,1802.3,8.33257276]
[1745975517295,5.589963,1802.6,1802.4,5.54790977]
[1745975517612,5.589963,1802.6,1802.5,0.8075]
[1745975519995,5.589963,1802.6,1802.3,0.410037]
[1745975520215,5.589963,1802.6,1802.3,1.208337]
[1745975520726,0.35446362,1802.5,1802.3,1.208337]
[1745975521025,0.35446362,1802.5,1802.3,6.75679342]
[1745975521402,5.77146362,1802.5,1802.3,0.410037]
[1745975521597,4.98446362,1802.5,1802.3,0.410037]
[1745975523328,9.392663,1802.4,1802.3,0.410037]
[1745975523487,9.74695277,1802.4,1802.3,0.410037]
[1745975523691,11.34130504,1802.4,1802.3,0.410037]
[1745975524116,11.65175429,1802.4,1802.3,0.410037]
[1745975526304,11.68005429,1802.4,1802.3,0.410037]
[1745975528956,14.022926,1802.2,1802.1,0.05]
[1745975529152,16.77277342,1802.2,1802.1,0.05]
[1745975529355,36.78305076,1802.2,1802.1,0.05]
[1745975529654,31.25050001,1802.2,1802.1,0.05]
[1745975529860,31.80050001,1802.2,1802.1,0.05]
[1745975532429,29.68393009,1802.2,1802.1,0.05]
[1745975534251,29.68311237,1802.2,1802.1,0.05]
[1745975535716,3.0,1802.1,1802.0,0.99289295]
[1745975536014,13.31474273,1802.1,1802.0,0.93009096]
[1745975536221,3.791,1801.9,1801.2,0.7832]
[1745975536421,3.0,1801.7,1801.2,0.7832]
[1745975536641,4.64,1801.6,1801.2,0.7832]
[1745975536812,4.9885548,1801.6,1801.2,0.7832]
[1745975538640,4.9885548,1801.6,1801.3,0.8037]
[1745975550916,4.9885548,1801.6,1801.4,1.56656992]
[1745975551128,0.3485548,1801.6,1801.5,0.7914]
[1745975551525,0.34720081,1801.6,1801.5,1.3414]
[1745975551725,4.64,1801.9,1801.5,1.3414]
[1745975551945,4.64,1801.9,1801.7,0.814]
[1745975552146,0.34721523,1801.8,1801.7,0.814]
[1745975552454,27.22283504,1802.2,1801.7,0.814]
[1745975552653,0.32022825,1801.8,1801.7,0.814]
[1745975552830,0.31080549,1802.1,1801.7,0.814]
[1745975553061,0.32022825,1801.8,1801.7,0.814]
[1745975553239,0.31080549,1802.1,1801.7,0.814]
[1745975553431,0.32022825,1801.8,1801.7,0.814]
[1745975553634,0.31080549,1802.1,1801.7,0.814]
[1745975553949,0.32022825,1801.8,1801.7,0.814]
[1745975554155,0.31080549,1802.1,1801.7,0.814]
[1745975554450,27.22283504,1802.2,1801.8,5.55000555]
[1745975554621,4.24983504,1802.2,1802.1,5.54908162]
[1745975554822,4.64,1802.6,1802.3,5.54833045]
[1745975555151,4.64,1802.6,1802.4,6.35264946]
[1745975555344,4.64,1802.6,1802.5,5.5478502]
[1745975555559,4.24983504,1802.7,1802.5,5.54765228]
[1745975555726,4.24983504,1802.7,1802.6,6.34524243]
[1745975556061,4.24983504,1802.7,1802.6,0.7977]
[1745975556227,4.24983504,1802.7,1802.6,6.34524243]
[1745975556893,4.24983504,1802.7,1802.6,0.7977]
[1745975557189,4.64,1802.9,1802.8,5.546927]
[1745975557350,5.4594,1803.2,1802.7,5.54711116]
[1745975557551,8.4594,1803.2,1802.6,0.7977]
[1745975558081,7.24983504,1803.1,1802.3,0.7619]
[1745975558274,0.7697,1802.9,1802.3,0.7619]
[1745975558486,4.661,1802.8,1802.3,0.7619]
[1745975561351,0.26598006,1802.7,1802.3,0.7619]
[1745975561556,4.5158151,1802.7,1802.3,0.7619]
[1745975563495,0.7664,1802.6,1802.1,0.7578]
[1745975563672,4.21798151,1802.6,1802.1,0.7578]
[1745975563873,0.26596703,1802.5,1802.1,0.7578]
[1745975566798,0.26596703,1802.5,1801.9,1.3224]
[1745975568699,0.7919,1802.4,1801.9,0.7724]
[1745975568868,1.06005841,1802.4,1801.9,0.7724]
[1745975570201,0.26815841,1802.4,1801.9,6.32190217]
[1745975570573,4.22918151,1802.6,1801.9,6.32190217]
[1745975570780,0.26988074,1802.3,1801.9,0.7724]
[1745975571002,4.22918151,1802.6,1801.9,0.7724]
[1745975571297,0.26989515,1802.5,1801.9,0.7724]
[1745975573403,0.26989515,1802.5,1801.9,6.32199301]
[1745975573605,0.26989515,1802.5,1802.1,0.8201]
[1745975578001,0.26989515,1802.5,1802.0,1.57814844]
[1745975578302,0.8128,1802.4,1802.0,1.57814844]
[1745975578509,1.08268794,1802.4,1802.0,1.57814844]
[1745975578677,1.08268794,1802.4,1802.0,1.86726328]
[1745975583689,1.08268794,1802.4,1802.0,1.57814844]
[1745975583892,0.753,1802.3,1801.7,0.819]
[1745975584093,1.02274041,1802.3,1801.7,2.39714844]
[1745975584721,0.31107091,1802.2,1801.7,2.39714844]
[1745975585118,0.27000662,1802.1,1801.7,2.39714844]
[1745975585624,0.753,1802.3,1801.7,2.39714844]
[1745975585933,0.26999941,1802.0,1801.7,2.39714844]
[1745975586137,0.753,1802.3,1801.7,2.39714844]
[1745975586308,0.26999221,1801.9,1801.7,2.39714844]
[1745975586503,0.753,1802.3,1801.7,2.39714844]
[1745975586814,0.753,1802.3,1801.7,2.94714844]
[1745975587018,0.27001382,1802.2,1801.7,2.94714844]
[1745975589822,0.8212,1802.1,1801.7,2.94714844]
[1745975590128,1.09120662,1802.1,1801.7,2.94714844]
[1745975596039,0.8212,1802.1,1801.7,2.94714844]
[1745975596624,0.8212,1802.1,1801.7,8.49744428]
[1745975597027,0.8212,1802.1,1801.7,0.819]
[1745975597231,0.26910385,1802.0,1801.5,7.93334952]
[1745975597415,3.8212,1802.1,1801.5,2.38254844]
[1745975597621,0.26789044,1802.0,1801.5,2.38254844]
[1745975597822,0.26789044,1802.0,1801.5,7.93343565]
[1745975598033,3.8212,1802.1,1801.5,7.93343565]
[1745975598737,0.31134072,1802.0,1801.5,7.93343565]
[1745975599240,0.31134072,1802.0,1801.9,1.57814844]
[1745975599450,0.57925176,1802.0,1801.7,2.38254844]
[1745975599815,0.26791104,1802.0,1801.7,2.38254844]
[1745975600339,0.26791104,1802.0,1801.5,7.95763635]
[1745975600711,0.83751214,1802.0,1801.5,7.95763635]
[1745975600913,0.83751214,1802.0,1801.5,7.95755909]
[1745975601244,5.4281,1802.1,1801.7,7.12832277]
[1745975601450,0.26790965,1802.0,1801.7,7.12832277]
[1745975601959,0.26790965,1802.0,1801.6,5.55041094]
[1745975602446,5.4281,1802.1,1801.6,5.55041094]
[1745975602613,5.4281,1802.1,1801.5,7.95760076]
[1745975602810,5.97091,1802.1,1801.5,13.50831516]
[1745975603136,5.97091,1802.1,1801.5,13.50828069]
[1745975603654,0.31123155,1802.0,1801.5,13.50828069]
[1745975603948,0.7977,1801.9,1801.5,13.50828069]
[1745975604251,0.7977,1801.9,1801.5,7.95756284]
[1745975605448,0.7977,1801.9,1801.5,7.12892256]
[1745975605612,0.26785946,1801.8,1801.5,1.57814844]
[1745975605816,0.7977,1801.9,1801.5,7.12895111]
[1745975606017,0.26786496,1801.8,1801.5,7.12895111]
[1745975606347,0.7977,1801.9,1801.5,7.12895111]
[1745975606658,0.26786771,1801.8,1801.5,7.12895111]
[1745975606818,0.7977,1801.9,1801.5,7.12895111]
[1745975607014,0.26786908,1801.8,1801.5,1.57814844]
[1745975607220,0.7977,1801.9,1801.3,8.30180627]
[1745975607521,0.7521,1801.7,1801.1,7.93659868]
[1745975607721,0.26625853,1801.6,1801.1,7.93659868]
[1745975607922,0.7521,1801.5,1801.1,1.62814844]
[1745975608127,0.26623309,1801.4,1801.1,0.05]
[1745975609961,0.83,1801.3,1801.1,0.05]
[1745975610255,0.26401764,1801.2,1801.1,0.05]
[1745975610657,0.83,1801.2,1801.1,0.05]
[1745975610853,0.26401764,1801.2,1801.1,0.05]
[1745975611044,4.646,1801.4,1801.1,0.05]
[1745975611241,1.09402485,1801.3,1801.1,0.05]
[1745975612943,0.26402485,1801.3,1801.1,0.05]
[1745975614064,0.26402485,1801.3,1801.2,5.55185431]
[1745975614265,0.26402485,1801.3,1801.2,6.35715431]
[1745975614425,0.807,1801.3,1801.1,0.05]
[1745975614625,0.26399281,1801.2,1801.1,0.05]
[1745975617168,0.26399281,1801.2,1801.1,5.60216256]
[1745975617459,8.89683504,1801.7,1801.2,5.55183966]
[1745975617460,0.8279,1801.5,1801.2,5.55183966]
[1745975617662,9.72473504,1801.7,1801.3,7.12965926]
[1745975617866,0.26130013,1801.6,1801.3,7.12965926]
[1745975618170,9.72473504,1801.7,1801.3,7.12965926]
[1745975618353,0.26129567,1801.5,1801.3,7.12965926]
[1745975618662,0.26128571,1801.4,1801.3,7.12965926]
[1745975618863,9.72473504,1801.7,1801.3,7.12965926]
[1745975619031,0.26130013,1801.6,1801.3,7.12965926]
[1745975619232,9.72473504,1801.7,1801.3,7.12965926]
[1745975619438,0.26130151,1801.6,1801.3,7.12965926]
[1745975619632,9.72473504,1801.7,1801.3,12.68098972]
[1745975619832,0.26130288,1801.6,1801.3,7.1294789]
[1745975620069,9.72473504,1801.7,1801.3,7.1294789]
[1745975620380,0.26130288,1801.6,1801.2,11.9286026]
[1745975620561,0.26130288,1801.6,1801.3,5.55143884]
[1745975620869,0.2612943,1801.5,1801.3,5.55143884]
[1745975621082,9.72473504,1801.7,1801.2,6.37694075]
[1745975621374,10.69720854,1801.7,1801.2,11.92857264]
[1745975621540,10.69720854,1801.7,1801.2,5.55163189]
[1745975621872,10.69720854,1801.7,1801.1,7.99695683]
[1745975621873,0.7951,1801.5,1801.1,7.18015683]
[1745975622074,0.26128983,1801.4,1801.1,7.18010707]
[1745975622671,0.26128983,1801.4,1801.1,12.73204562]
[1745975622873,0.26128983,1801.4,1801.1,5.60193855]
[1745975623365,0.26128983,1801.4,1801.1,0.05]
[1745975623569,0.26128983,1801.4,1801.1,5.60206737]
[1745975623733,0.822,1801.3,1801.1,0.05]
[1745975623934,0.26202164,1801.2,1801.1,0.05]
[1745975624134,0.822,1801.3,1801.1,0.05]
[1745975625081,0.7848,1801.5,1801.1,5.60209707]
[1745975625252,0.26176071,1801.4,1801.1,5.60209707]
[1745975626468,0.26176071,1801.4,1801.1,11.15410194]
[1745975626696,0.26176071,1801.4,1801.1,6.35618002]
[1745975627074,0.26176071,1801.4,1801.1,0.05]
[1745975632284,0.7838,1801.3,1801.1,0.05]
[1745975632581,0.26170357,1801.2,1801.1,0.05]
[1745975636582,1.18498,1801.5,1801.1,0.05]
[1745975636777,0.26170357,1801.2,1801.1,0.05]
[1745975637284,0.31074679,1801.4,1801.1,0.05]
[1745975637487,0.26170357,1801.2,1801.1,0.05]
[1745975637677,0.31074679,1801.4,1801.1,0.05]
[1745975637984,0.26171078,1801.3,1801.1,0.05]
[1745975638285,1.18498,1801.5,1801.1,0.05]
[1745975638486,0.26171799,1801.4,1801.1,0.05]
[1745975639583,0.26171799,1801.4,1801.1,6.42642891]
[1745975639786,0.26171799,1801.4,1801.1,0.8745]
[1745975640091,0.3109005,1801.3,1801.1,0.8745]
[1745975640274,0.57261128,1801.3,1801.1,0.8745]
[1745975640480,0.57261128,1801.3,1801.1,6.42664779]
[1745975640688,0.26171078,1801.3,1801.2,7.13000275]
[1745975640857,9.66693504,1801.7,1801.3,5.55138645]
[1745975641056,0.23919117,1801.3,1801.2,7.13000275]
[1745975641271,9.66693504,1801.7,1801.2,7.13000275]
[1745975641458,0.23919117,1801.3,1801.2,7.13000275]
[1745975641771,0.31091555,1801.6,1801.2,7.13000275]
[1745975642091,0.31091555,1801.6,1801.2,7.12978291]
[1745975642292,0.23920559,1801.5,1801.2,7.12978291]
[1745975642493,0.55012114,1801.5,1801.2,7.12978291]
[1745975642693,0.55012114,1801.5,1801.3,6.35792861]
[1745975643379,0.23920559,1801.5,1801.3,6.35792861]
[1745975643797,9.66693504,1801.7,1801.3,6.35792861]
[1745975644005,0.23919838,1801.4,1801.3,6.35792861]
[1745975644161,0.31078081,1801.6,1801.3,6.35792861]
[1745975644694,0.23920559,1801.5,1801.3,6.35792861]
[1745975645287,9.66693504,1801.7,1801.3,6.35792861]
[1745975645485,0.2392128,1801.6,1801.3,6.35792861]
[1745975645687,9.66693504,1801.7,1801.3,6.35792861]
[1745975645986,0.23920559,1801.5,1801.3,6.35792861]
[1745975646176,10.63362854,1801.7,1801.3,6.35792861]
[1745975646374,0.23919838,1801.4,1801.3,0.8065]
[1745975646663,0.23919838,1801.4,1801.3,6.3580461]
[1745975646984,9.66693504,1801.7,1801.3,6.3580461]
[1745975647295,10.63362854,1801.7,1801.3,6.3580461]
[1745975647499,0.54991977,1801.6,1801.3,0.8065]
[1745975647796,0.54991977,1801.6,1801.3,6.3580239]
[1745975648697,0.2392128,1801.6,1801.3,6.3580239]
[1745975648902,9.66693504,1801.7,1801.3,6.3580239]
[1745975649199,0.23920559,1801.5,1801.3,6.3580239]
[1745975649394,9.66693504,1801.7,1801.3,6.3580239]
[1745975649601,0.23919838,1801.4,1801.3,6.3580239]
[1745975649815,8.89783504,1801.7,1801.3,0.8065]
[1745975649967,0.23919838,1801.4,1801.3,6.3580461]
[1745975650298,0.23919838,1801.4,1801.3,6.35784064]
[1745975650505,8.89783504,1801.7,1801.3,6.35784064]
[1745975650744,0.23919838,1801.4,1801.3,6.35804031]
[1745975650917,9.67083504,1801.7,1801.3,6.35804031]
[1745975651208,0.23919838,1801.4,1801.3,6.35804031]
[1745975651379,0.31073478,1801.6,1801.3,6.35804031]
[1745975651583,0.23919838,1801.4,1801.3,6.35804031]
[1745975651780,5.02283504,1801.7,1801.3,6.35804031]
[1745975651981,0.23919838,1801.4,1801.3,6.35804031]
[1745975652163,5.02283504,1801.7,1801.3,6.35804031]
[1745975652369,0.23919838,1801.4,1801.3,6.35804031]
[1745975652599,4.24983504,1801.7,1801.4,5.55116488]
[1745975654199,4.24983504,1801.7,1801.4,5.55105193]
[1745975655115,4.24983504,1801.7,1801.4,5.55101664]
[1745975655711,0.24127784,1801.6,1801.4,5.55101664]
[1745975655919,4.24983504,1801.7,1801.4,5.55101664]
[1745975656210,0.24127784,1801.6,1801.4,5.55101664]
[1745975656514,4.24983504,1801.7,1801.4,5.55101664]
[1745975656753,0.24127784,1801.6,1801.5,5.55073371]
[1745975657031,4.24983504,1801.7,1801.5,6.35713371]
[1745975657330,0.22116234,1801.6,1801.5,6.35713371]
[1745975657492,4.24983504,1801.7,1801.5,6.35713371]
[1745975657692,0.22116234,1801.6,1801.5,6.35713371]
[1745975658011,4.24983504,1801.7,1801.5,6.35713371]
[1745975658191,0.22116234,1801.6,1801.5,6.35713371]
[1745975658593,4.24983504,1801.7,1801.5,11.90784347]
[1745975658827,0.22116234,1801.6,1801.5,6.35710976]
[1745975659230,4.24983504,1801.7,1801.5,11.90781952]
[1745975659522,0.22116234,1801.6,1801.5,6.35710976]
[1745975659714,4.24983504,1801.7,1801.5,11.90781607]
[1745975659913,4.24983504,1801.7,1801.6,5.55062166]
[1745975660114,0.7675,1802.0,1801.6,12.67939176]
[1745975660425,0.7675,1802.0,1801.6,7.1287701]
[1745975660628,5.444,1802.2,1801.8,5.54985894]
[1745975660805,5.444,1802.2,1801.7,11.90290038]
[1745975661003,5.444,1802.2,1801.8,5.54993028]
[1745975661313,5.444,1802.2,1801.7,6.35282341]
[1745975661830,0.31046851,1802.1,1801.7,6.35282341]
[1745975662190,0.31046851,1802.1,1801.7,11.90294013]
[1745975662396,0.31046851,1802.1,1801.7,6.35271672]
[1745975662796,0.31046851,1802.1,1801.8,5.54991593]
[1745975663248,0.31046851,1802.1,1801.7,6.35271672]
[1745975663525,5.444,1802.2,1801.7,6.35271672]
[1745975664227,9.69383504,1802.2,1801.8,5.54997735]
[1745975664591,9.69383504,1802.2,1801.8,5.54990552]
[1745975664792,4.636,1802.2,1801.9,5.54958042]
[1745975665003,4.636,1802.2,1801.9,6.33558235]
[1745975665696,27.22783504,1802.4,1802.0,7.12740719]
[1745975666619,27.22783504,1802.4,1802.0,12.67658618]
[1745975666808,27.22783504,1802.4,1802.0,7.12732084]
[1745975667016,27.22783504,1802.4,1802.1,5.54906706]
[1745975667693,27.22783504,1802.4,1802.0,7.12732084]
[1745975668095,4.24983504,1802.4,1802.0,7.12732084]
[1745975668708,4.24983504,1802.4,1802.0,12.67650187]
[1745975669302,4.24983504,1802.4,1802.1,5.54903238]
[1745975669526,4.24983504,1802.4,1802.2,11.89982859]
[1745975669729,5.3973,1802.6,1802.2,6.35120049]
[1745975670822,0.20427096,1802.5,1802.2,6.35120049]
[1745975671950,0.20427096,1802.5,1802.3,5.54846511]
[1745975673456,0.20427096,1802.5,1802.2,6.35120049]
[1745975674455,0.20427096,1802.5,1802.2,6.3511574]
[1745975676832,0.20427096,1802.5,1802.2,6.35135498]
[1745975678374,0.20427096,1802.5,1802.2,0.8026]
[1745975680267,0.764,1802.4,1802.0,7.12739362]
[1745975680560,0.20955695,1802.3,1802.0,5.54924518]
[1745975680741,0.764,1802.4,1802.0,5.54924518]
[1745975680923,0.20955249,1802.2,1802.0,5.54924518]
[1745975681128,0.764,1802.4,1802.0,5.54924518]
[1745975681325,0.20954528,1802.1,1801.9,6.37135236]
[1745975681634,0.764,1802.4,1801.9,6.3713463]
[1745975681833,1.1404,1802.4,1801.9,6.3713463]
[1745975682030,0.2095597,1802.3,1801.9,0.8217]
[1745975682361,0.764,1802.2,1801.8,7.12795082]
[1745975682567,0.764,1802.2,1801.8,12.67778262]
[1745975683771,0.764,1802.2,1801.8,12.67308262]